[Event "Early-Titled-Tuesday-Blitz-January-30-2024"]
[Site "Chess.com"]
[Date "2024.01.30"]
[Round "1"]
[White "josmito10"]
[Black "garfield_pg"]
[Result "0-1"]
[WhiteElo "2775"]
[BlackElo "2454"]
[TimeControl "180+1"]
[EndTime "8:10:21 PST"]
[Termination "garfield_pg won on time"]

1. e4 {[%clk 0:02:59.4]} 1... c5 {[%clk 0:03:00.4]} 2. Nf3 {[%clk 0:02:59.5]}
2... Nc6 {[%clk 0:03:01]} 3. c3 {[%clk 0:02:59.6]} 3... Nf6 {[%clk 0:03:00.9]}
4. e5 {[%clk 0:02:59.9]} 4... Nd5 {[%clk 0:03:01.6]} 5. d4 {[%clk 0:03:00.8]}
5... cxd4 {[%clk 0:03:01.9]} 6. cxd4 {[%clk 0:03:01.2]} 6... d6 {[%clk 0:03:02]}
7. Bc4 {[%clk 0:03:00.9]} 7... dxe5 {[%clk 0:03:01.1]} 8. Bxd5 {[%clk
0:03:00.3]} 8... Qxd5 {[%clk 0:03:00.3]} 9. Nc3 {[%clk 0:03:00.2]} 9... Qd6
{[%clk 0:03:00.7]} 10. d5 {[%clk 0:02:59.8]} 10... Nd4 {[%clk 0:03:01.2]} 11.
Nxd4 {[%clk 0:02:59.6]} 11... exd4 {[%clk 0:03:02.1]} 12. Qxd4 {[%clk
0:03:00.3]} 12... e5 {[%clk 0:03:02.7]} 13. Qd3 {[%clk 0:02:59.2]} 13... Bd7
{[%clk 0:02:55.6]} 14. O-O {[%clk 0:02:58.3]} 14... Be7 {[%clk 0:02:14.4]} 15.
f4 {[%clk 0:02:57.7]} 15... O-O {[%clk 0:01:53.9]} 16. fxe5 {[%clk 0:02:46]}
16... Qxe5 {[%clk 0:01:52.4]} 17. Bf4 {[%clk 0:02:44.9]} 17... Bc5+ {[%clk
0:01:48]} 18. Kh1 {[%clk 0:02:43.5]} 18... Qh5 {[%clk 0:01:30.3]} 19. Qg3 {[%clk
0:02:07.8]} 19... Qg6 {[%clk 0:01:25.6]} 20. Qxg6 {[%clk 0:01:54.1]} 20... hxg6
{[%clk 0:01:26.5]} 21. Ne4 {[%clk 0:01:54]} 21... Bd4 {[%clk 0:01:18.8]} 22.
Rad1 {[%clk 0:01:51.2]} 22... Bxb2 {[%clk 0:01:07.2]} 23. Rb1 {[%clk 0:01:50.5]}
23... Bf5 {[%clk 0:01:07.8]} 24. Rxb2 {[%clk 0:01:46.9]} 24... Bxe4 {[%clk
0:01:07.3]} 25. d6 {[%clk 0:01:46.3]} 25... Bc6 {[%clk 0:01:03.7]} 26. h3 {[%clk
0:01:39.9]} 26... Rfe8 {[%clk 0:00:58.3]} 27. Rbf2 {[%clk 0:01:37.6]} 27... f6
{[%clk 0:00:54.2]} 28. Kh2 {[%clk 0:01:34.6]} 28... Rad8 {[%clk 0:00:50.2]} 29.
Rd2 {[%clk 0:01:31]} 29... Kf7 {[%clk 0:00:43.1]} 30. Rfd1 {[%clk 0:01:29.8]}
30... Re4 {[%clk 0:00:38.4]} 31. Bg3 {[%clk 0:01:28.7]} 31... Rd7 {[%clk
0:00:38.1]} 32. Bf2 {[%clk 0:01:26.3]} 32... a6 {[%clk 0:00:37.3]} 33. Bg3
{[%clk 0:01:13.2]} 33... g5 {[%clk 0:00:22.9]} 34. Rf2 {[%clk 0:01:08.6]} 34...
Kg6 {[%clk 0:00:21.6]} 35. Rdf1 {[%clk 0:01:02]} 35... Re6 {[%clk 0:00:17.1]}
36. Kg1 {[%clk 0:00:48.6]} 36... Bb5 {[%clk 0:00:15.7]} 37. Rc1 {[%clk
0:00:46.9]} 37... Bc6 {[%clk 0:00:12.3]} 38. Rc5 {[%clk 0:00:46.5]} 38... Re1+
{[%clk 0:00:09.9]} 39. Kh2 {[%clk 0:00:46.1]} 39... Re4 {[%clk 0:00:09]} 40. a3
{[%clk 0:00:37.6]} 40... Rd8 {[%clk 0:00:08.9]} 41. Ra5 {[%clk 0:00:34.9]} 41...
Rde8 {[%clk 0:00:06.6]} 42. Rc5 {[%clk 0:00:25.9]} 42... Re2 {[%clk 0:00:04.8]}
43. Rc2 {[%clk 0:00:25.9]} 43... Rxf2 {[%clk 0:00:04.4]} 44. Rxf2 {[%clk
0:00:25.3]} 44... Kf7 {[%clk 0:00:05]} 45. Rd2 {[%clk 0:00:25.4]} 45... Ke6
{[%clk 0:00:05.3]} 46. Kg1 {[%clk 0:00:16]} 46... Kd7 {[%clk 0:00:05.8]} 47. h4
{[%clk 0:00:16.6]} 47... gxh4 {[%clk 0:00:05.8]} 48. Bxh4 {[%clk 0:00:17.5]}
48... Re3 {[%clk 0:00:06.3]} 49. Kh2 {[%clk 0:00:09.6]} 49... Rxa3 {[%clk
0:00:06]} 50. Bg3 {[%clk 0:00:10.4]} 50... Re3 {[%clk 0:00:04.4]} 51. Rd4 {[%clk
0:00:10.1]} 51... Re6 {[%clk 0:00:04.9]} 52. Rh4 {[%clk 0:00:09.5]} 52... Re8
{[%clk 0:00:05]} 53. Rh7 {[%clk 0:00:09]} 53... Rg8 {[%clk 0:00:05.7]} 54. Rh4
{[%clk 0:00:09.2]} 54... a5 {[%clk 0:00:06]} 55. Rh5 {[%clk 0:00:07.4]} 55... b6
{[%clk 0:00:05.5]} 56. Rh4 {[%clk 0:00:04.4]} 56... b5 {[%clk 0:00:05.7]} 57.
Rh5 {[%clk 0:00:04.2]} 57... a4 {[%clk 0:00:05.9]} 58. Be1 {[%clk 0:00:01.7]}
58... a3 {[%clk 0:00:06.1]} 59. Rh3 {[%clk 0:00:02.1]} 59... Ra8 {[%clk
0:00:05.3]} 60. Bc3 {[%clk 0:00:02.2]} 60... b4 {[%clk 0:00:05]} 61. Bxb4 {[%clk
0:00:01.7]} 61... a2 {[%clk 0:00:05.2]} 62. Bc3 {[%clk 0:00:02.3]} 62... a1=Q
{[%clk 0:00:05.4]} 63. Bxa1 {[%clk 0:00:02.9]} 63... Rxa1 {[%clk 0:00:06.2]} 64.
Rh7 {[%clk 0:00:03.8]} 64... Kxd6 {[%clk 0:00:06.2]} 65. Rxg7 {[%clk 0:00:04.3]}
65... Rf1 {[%clk 0:00:06.7]} 66. Rg8 {[%clk 0:00:04.3]} 66... Ke6 {[%clk
0:00:06.7]} 67. Rc8 {[%clk 0:00:03.9]} 67... Bd5 {[%clk 0:00:06.4]} 68. Rc2
{[%clk 0:00:03.8]} 68... Re1 {[%clk 0:00:06]} 69. Rd2 {[%clk 0:00:03.8]} 69...
Re5 {[%clk 0:00:06.1]} 70. Rb2 {[%clk 0:00:04.1]} 70... Rh5+ {[%clk 0:00:06.6]}
71. Kg3 {[%clk 0:00:04.2]} 71... Rg5+ {[%clk 0:00:07.5]} 72. Kh3 {[%clk
0:00:02.2]} 72... Ke5 {[%clk 0:00:05.1]} 73. g3 {[%clk 0:00:02.1]} 73... Rh5+
{[%clk 0:00:05.1]} 74. Kg4 {[%clk 0:00:02.6]} 74... Rg5+ {[%clk 0:00:06]} 75.
Kh4 {[%clk 0:00:02.6]} 75... Be4 {[%clk 0:00:05.5]} 76. Rb5+ {[%clk 0:00:02.7]}
76... Bd5 {[%clk 0:00:06]} 77. g4 {[%clk 0:00:02.5]} 77... Rg8 {[%clk
0:00:04.7]} 78. Rb6 {[%clk 0:00:02.2]} 78... Be6 {[%clk 0:00:04.4]} 79. Rb5+
{[%clk 0:00:02.6]} 79... Kd6 {[%clk 0:00:04.8]} 80. g5 {[%clk 0:00:03.1]} 80...
f5 {[%clk 0:00:04.9]} 81. Kh5 {[%clk 0:00:02.7]} 81... f4 {[%clk 0:00:04.5]} 82.
g6 {[%clk 0:00:02.8]} 82... f3 {[%clk 0:00:04.4]} 83. Rb2 {[%clk 0:00:03]} 83...
Ke5 {[%clk 0:00:03.5]} 84. Kh6 {[%clk 0:00:03.2]} 84... Bf5 {[%clk 0:00:03.2]}
85. g7 {[%clk 0:00:03.2]} 85... Kf6 {[%clk 0:00:03.7]} 86. Rb6+ {[%clk
0:00:03.1]} 86... Be6 {[%clk 0:00:04.4]} 87. Rb7 {[%clk 0:00:02.4]} 87... f2
{[%clk 0:00:03.6]} 88. Rb1 {[%clk 0:00:02.5]} 88... Rxg7 {[%clk 0:00:03.2]} 89.
Rf1 {[%clk 0:00:02.8]} 89... Rg2 {[%clk 0:00:03.7]} 90. Kh5 {[%clk 0:00:02.8]}
90... Bc4 {[%clk 0:00:04]} 91. Rd1 {[%clk 0:00:01.9]} 91... Rh2+ {[%clk
0:00:04.2]} 92. Kg4 {[%clk 0:00:02.1]} 92... f1=Q {[%clk 0:00:04.6]} 93. Rxf1+
{[%clk 0:00:02.5]} 93... Bxf1 {[%clk 0:00:05.5]} 94. Kg3 {[%clk 0:00:03.1]}
94... Re2 {[%clk 0:00:05.6]} 0-1

[Event "Early-Titled-Tuesday-Blitz-January-30-2024"]
[Site "Chess.com"]
[Date "2024.01.30"]
[Round "1"]
[White "IMRosen"]
[Black "eightbyeightchess"]
[Result "0-1"]
[WhiteElo "2731"]
[BlackElo "2427"]
[TimeControl "180+1"]
[EndTime "8:10:31 PST"]
[Termination "eightbyeightchess won by checkmate"]

1. d4 {[%clk 0:03:00.9]} 1... d5 {[%clk 0:02:59.6]} 2. Bf4 {[%clk 0:03:00.3]}
2... Nf6 {[%clk 0:02:54.9]} 3. e3 {[%clk 0:02:59.8]} 3... c5 {[%clk 0:02:51.7]}
4. Nf3 {[%clk 0:02:58.5]} 4... Nc6 {[%clk 0:02:46.8]} 5. Nbd2 {[%clk 0:02:58.6]}
5... Bg4 {[%clk 0:02:40]} 6. c3 {[%clk 0:02:58.4]} 6... c4 {[%clk 0:02:21.3]} 7.
b3 {[%clk 0:02:48.5]} 7... b5 {[%clk 0:02:08]} 8. bxc4 {[%clk 0:01:59.7]} 8...
bxc4 {[%clk 0:02:05]} 9. Qa4 {[%clk 0:01:59.6]} 9... Bd7 {[%clk 0:01:55]} 10.
Qc2 {[%clk 0:01:58]} 10... g6 {[%clk 0:01:50.5]} 11. e4 {[%clk 0:01:48.1]} 11...
e6 {[%clk 0:01:40.4]} 12. Be2 {[%clk 0:01:41.1]} 12... Nh5 {[%clk 0:01:33.2]}
13. Be3 {[%clk 0:01:28.9]} 13... Bg7 {[%clk 0:01:09.7]} 14. e5 {[%clk
0:01:16.3]} 14... Bf8 {[%clk 0:01:08.4]} 15. g4 {[%clk 0:00:56.5]} 15... Ng7
{[%clk 0:01:07.9]} 16. Bh6 {[%clk 0:00:42.3]} 16... Rb8 {[%clk 0:00:37.9]} 17.
Nf1 {[%clk 0:00:28.9]} 17... Qb6 {[%clk 0:00:31.7]} 18. Ne3 {[%clk 0:00:25]}
18... Qb2 {[%clk 0:00:23]} 19. O-O {[%clk 0:00:18.9]} 19... Nf5 {[%clk
0:00:15.1]} 20. Bxf8 {[%clk 0:00:09.3]} 20... Nxe3 {[%clk 0:00:14.8]} 21. Qxb2
{[%clk 0:00:08.6]} 21... Rxb2 {[%clk 0:00:14.7]} 22. fxe3 {[%clk 0:00:05.7]}
22... Kxf8 {[%clk 0:00:13.2]} 23. Bd1 {[%clk 0:00:04.5]} 23... h6 {[%clk
0:00:12.1]} 24. Rf2 {[%clk 0:00:03.5]} 24... Rb6 {[%clk 0:00:09.4]} 25. Bc2
{[%clk 0:00:03.8]} 25... Ke7 {[%clk 0:00:07.9]} 26. Raf1 {[%clk 0:00:04.3]}
26... Rhb8 {[%clk 0:00:07.2]} 27. Nd2 {[%clk 0:00:04]} 27... Nd8 {[%clk
0:00:07.8]} 28. h4 {[%clk 0:00:01.8]} 28... Rb2 {[%clk 0:00:08.2]} 29. Nf3
{[%clk 0:00:02.7]} 29... Rxa2 {[%clk 0:00:07.7]} 30. Rb1 {[%clk 0:00:03]} 30...
Rxb1+ {[%clk 0:00:07.7]} 31. Bxb1 {[%clk 0:00:03.9]} 31... Rxf2 {[%clk
0:00:08.5]} 32. Kxf2 {[%clk 0:00:04.5]} 32... a5 {[%clk 0:00:08.2]} 33. Ke2
{[%clk 0:00:05]} 33... Nb7 {[%clk 0:00:08.4]} 34. Kd2 {[%clk 0:00:05.5]} 34...
a4 {[%clk 0:00:09]} 35. Kc2 {[%clk 0:00:05.2]} 35... Na5 {[%clk 0:00:09.2]} 36.
Kb2 {[%clk 0:00:05.7]} 36... Nb3 {[%clk 0:00:09.3]} 37. Ka3 {[%clk 0:00:06.2]}
37... Kd8 {[%clk 0:00:09.7]} 38. Kb4 {[%clk 0:00:06.4]} 38... Kc7 {[%clk
0:00:09.8]} 39. Bc2 {[%clk 0:00:06.3]} 39... Nc1 {[%clk 0:00:08.9]} 40. Bxa4
{[%clk 0:00:05.1]} 40... Nd3+ {[%clk 0:00:09.1]} 41. Ka3 {[%clk 0:00:04.6]}
41... Bxa4 {[%clk 0:00:09.1]} 42. Kxa4 {[%clk 0:00:05.5]} 42... Nf2 {[%clk
0:00:09.5]} 43. g5 {[%clk 0:00:04.3]} 43... h5 {[%clk 0:00:10.1]} 44. Nd2 {[%clk
0:00:03.8]} 44... Ng4 {[%clk 0:00:08.3]} 45. e4 {[%clk 0:00:02.9]} 45... Ne3
{[%clk 0:00:04.6]} 46. exd5 {[%clk 0:00:02.7]} 46... exd5 {[%clk 0:00:05.5]} 47.
Kb5 {[%clk 0:00:02.5]} 47... Kd7 {[%clk 0:00:05.1]} 48. Kc5 {[%clk 0:00:02.4]}
48... Ke6 {[%clk 0:00:05.5]} 49. Nf3 {[%clk 0:00:02.2]} 49... Ng2 {[%clk
0:00:04.7]} 50. Kc6 {[%clk 0:00:01.4]} 50... Nf4 {[%clk 0:00:04.9]} 51. Kc5
{[%clk 0:00:01.8]} 51... Ne2 {[%clk 0:00:05]} 52. Kc6 {[%clk 0:00:01.3]} 52...
Nxc3 {[%clk 0:00:05.2]} 53. Nd2 {[%clk 0:00:01.9]} 53... Ne2 {[%clk 0:00:04.9]}
54. Kc5 {[%clk 0:00:01.5]} 54... c3 {[%clk 0:00:04.5]} 55. Nb3 {[%clk
0:00:01.3]} 55... c2 {[%clk 0:00:03.7]} 56. Kb4 {[%clk 0:00:01.8]} 56... Nf4
{[%clk 0:00:01.4]} 57. Nc1 {[%clk 0:00:01.6]} 57... Ng2 {[%clk 0:00:01.9]} 58.
Kc3 {[%clk 0:00:01.7]} 58... Nxh4 {[%clk 0:00:02.6]} 59. Kxc2 {[%clk 0:00:01.9]}
59... Nf3 {[%clk 0:00:03.3]} 60. Ne2 {[%clk 0:00:02.2]} 60... Nxg5 {[%clk
0:00:03.4]} 61. Kd3 {[%clk 0:00:02]} 61... Nh3 {[%clk 0:00:03.2]} 62. Ke3 {[%clk
0:00:02.3]} 62... g5 {[%clk 0:00:03.6]} 63. Nc3 {[%clk 0:00:02.5]} 63... Nf4
{[%clk 0:00:03.1]} 64. Na4 {[%clk 0:00:03.4]} 64... h4 {[%clk 0:00:03.1]} 65.
Nc5+ {[%clk 0:00:04]} 65... Kf5 {[%clk 0:00:03.5]} 66. Nb7 {[%clk 0:00:03.9]}
66... h3 {[%clk 0:00:03.9]} 67. Nd6+ {[%clk 0:00:04.3]} 67... Kg4 {[%clk
0:00:03.9]} 68. Nxf7 {[%clk 0:00:04.1]} 68... h2 {[%clk 0:00:04.4]} 69. e6
{[%clk 0:00:03.9]} 69... h1=Q {[%clk 0:00:04.3]} 70. Ne5+ {[%clk 0:00:04.8]}
70... Kg3 {[%clk 0:00:03.9]} 71. e7 {[%clk 0:00:05.3]} 71... Qe4+ {[%clk
0:00:04.2]} 72. Kd2 {[%clk 0:00:04.7]} 72... Qxd4+ {[%clk 0:00:01.7]} 73. Nd3
{[%clk 0:00:03.7]} 73... Qxd3+ {[%clk 0:00:02.2]} 74. Kc1 {[%clk 0:00:03.4]}
74... Qe2 {[%clk 0:00:03.1]} 75. e8=Q {[%clk 0:00:02]} 75... Qxe8 {[%clk
0:00:03.7]} 76. Kd2 {[%clk 0:00:02.5]} 76... Qe2+ {[%clk 0:00:03.9]} 77. Kc3
{[%clk 0:00:02.7]} 77... Qd3+ {[%clk 0:00:04.2]} 78. Kb4 {[%clk 0:00:02.9]}
78... Qc4+ {[%clk 0:00:04.5]} 79. Ka5 {[%clk 0:00:02.6]} 79... Qb3 {[%clk
0:00:04.6]} 80. Ka6 {[%clk 0:00:03.1]} 80... Qb4 {[%clk 0:00:04.8]} 81. Ka7
{[%clk 0:00:03.1]} 81... Qb5 {[%clk 0:00:05.3]} 82. Ka8 {[%clk 0:00:04]} 82...
Kf3 {[%clk 0:00:06.2]} 83. Ka7 {[%clk 0:00:04.3]} 83... Ke3 {[%clk 0:00:07.1]}
84. Ka8 {[%clk 0:00:04.7]} 84... Kd4 {[%clk 0:00:08]} 85. Ka7 {[%clk 0:00:05]}
85... Kc5 {[%clk 0:00:08.9]} 86. Ka8 {[%clk 0:00:05.3]} 86... Kc6 {[%clk
0:00:09.8]} 87. Ka7 {[%clk 0:00:05.7]} 87... Kc7 {[%clk 0:00:10.7]} 88. Ka8
{[%clk 0:00:05.1]} 88... d4 {[%clk 0:00:11.6]} 89. Ka7 {[%clk 0:00:04.5]} 89...
g4 {[%clk 0:00:12]} 90. Ka8 {[%clk 0:00:05.4]} 90... g3 {[%clk 0:00:12.9]} 91.
Ka7 {[%clk 0:00:05.7]} 91... g2 {[%clk 0:00:13.8]} 92. Ka8 {[%clk 0:00:06]}
92... g1=Q {[%clk 0:00:14.7]} 93. Ka7 {[%clk 0:00:06]} 93... Qgb1 {[%clk
0:00:15.6]} 94. Ka8 {[%clk 0:00:06.3]} 94... Nd3 {[%clk 0:00:15.2]} 95. Ka7
{[%clk 0:00:06.4]} 95... Q1b4 {[%clk 0:00:15.8]} 96. Ka8 {[%clk 0:00:07.2]}
96... Ne5 {[%clk 0:00:16.7]} 97. Ka7 {[%clk 0:00:07.6]} 97... Nf7 {[%clk
0:00:17.6]} 98. Ka8 {[%clk 0:00:07.9]} 98... Nd8 {[%clk 0:00:18.5]} 99. Ka7
{[%clk 0:00:08.2]} 99... d3 {[%clk 0:00:19.4]} 100. Ka8 {[%clk 0:00:08]} 100...
d2 {[%clk 0:00:20.3]} 101. Ka7 {[%clk 0:00:08.3]} 101... d1=Q {[%clk 0:00:21.2]}
102. Ka8 {[%clk 0:00:08.6]} 102... Qdb3 {[%clk 0:00:22.1]} 103. Ka7 {[%clk
0:00:09.1]} 103... Qb1 {[%clk 0:00:22.5]} 104. Ka8 {[%clk 0:00:10]} 104... Q4b2
{[%clk 0:00:23]} 105. Ka7 {[%clk 0:00:10.9]} 105... Nf7 {[%clk 0:00:23.5]} 106.
Ka8 {[%clk 0:00:11.8]} 106... Ne5 {[%clk 0:00:23.3]} 107. Ka7 {[%clk 0:00:12.6]}
107... Nf3 {[%clk 0:00:24.2]} 108. Ka8 {[%clk 0:00:13]} 108... Nd2 {[%clk
0:00:25.1]} 109. Ka7 {[%clk 0:00:13.2]} 109... Nb3 {[%clk 0:00:25]} 110. Ka8
{[%clk 0:00:14.1]} 110... Nd4 {[%clk 0:00:25.5]} 111. Ka7 {[%clk 0:00:15]}
111... Nc2 {[%clk 0:00:26.4]} 112. Ka8 {[%clk 0:00:15.4]} 112... Na3 {[%clk
0:00:27.1]} 113. Ka7 {[%clk 0:00:16.1]} 113... Q2a2 {[%clk 0:00:27.9]} 114. Ka8
{[%clk 0:00:15.5]} 114... Qba1 {[%clk 0:00:28.8]} 115. Ka7 {[%clk 0:00:15]}
115... Nb1# {[%clk 0:00:28.3]} 0-1

[Event "Early-Titled-Tuesday-Blitz-January-30-2024"]
[Site "Chess.com"]
[Date "2024.01.30"]
[Round "2"]
[White "Hasangatin_Ramil"]
[Black "cristiano78"]
[Result "1-0"]
[WhiteElo "2700"]
[BlackElo "2268"]
[TimeControl "180+1"]
[EndTime "8:12:41 PST"]
[Termination "Hasangatin_Ramil won by resignation"]

1. e4 {[%clk 0:02:53.7]} 1... c5 {[%clk 0:02:58.4]} 2. Nf3 {[%clk 0:02:45.6]}
2... d6 {[%clk 0:02:58.4]} 3. d4 {[%clk 0:02:45.3]} 3... cxd4 {[%clk 0:02:58]}
4. Qxd4 {[%clk 0:02:46.2]} 4... Nf6 {[%clk 0:02:58.1]} 5. e5 {[%clk 0:02:45.7]}
5... Nc6 {[%clk 0:02:58]} 6. Bb5 {[%clk 0:02:46.2]} 6... Qa5+ {[%clk 0:02:56.8]}
7. Nc3 {[%clk 0:02:46.5]} 7... Qxb5 {[%clk 0:02:57.1]} 8. Nxb5 {[%clk
0:02:47.4]} 8... Nxd4 {[%clk 0:02:57.4]} 9. Nfxd4 {[%clk 0:02:48.3]} 9... d5
{[%clk 0:02:57.6]} 10. Nc7+ {[%clk 0:02:48.2]} 10... Kd8 {[%clk 0:02:55.3]} 11.
Nxa8 {[%clk 0:02:49]} 1-0

[Event "Early-Titled-Tuesday-Blitz-January-30-2024"]
[Site "Chess.com"]
[Date "2024.01.30"]
[Round "2"]
[White "kaanadayhamle"]
[Black "gahryman"]
[Result "0-1"]
[WhiteElo "2388"]
[BlackElo "2654"]
[TimeControl "180+1"]
[EndTime "8:14:44 PST"]
[Termination "gahryman won by checkmate"]

1. Nf3 {[%clk 0:03:00.9]} 1... d5 {[%clk 0:02:59.2]} 2. d4 {[%clk 0:03:00]} 2...
Nf6 {[%clk 0:02:57.7]} 3. c4 {[%clk 0:03:00.3]} 3... e6 {[%clk 0:02:58.1]} 4.
cxd5 {[%clk 0:02:59.7]} 4... exd5 {[%clk 0:02:57.3]} 5. Nc3 {[%clk 0:03:00.2]}
5... c6 {[%clk 0:02:56.2]} 6. Bg5 {[%clk 0:03:00.7]} 6... Bd6 {[%clk 0:02:52.4]}
7. e3 {[%clk 0:03:01.2]} 7... O-O {[%clk 0:02:52]} 8. Bd3 {[%clk 0:03:01.7]}
8... Re8 {[%clk 0:02:49.5]} 9. Qc2 {[%clk 0:03:01.1]} 9... h6 {[%clk 0:02:47.8]}
10. Bh4 {[%clk 0:03:01.5]} 10... a5 {[%clk 0:02:47.7]} 11. O-O {[%clk
0:03:00.1]} 11... Na6 {[%clk 0:02:46.8]} 12. a3 {[%clk 0:02:59.8]} 12... Nc7
{[%clk 0:02:47]} 13. Rfe1 {[%clk 0:02:45.3]} 13... Bg4 {[%clk 0:02:46.1]} 14.
Nd2 {[%clk 0:02:38]} 14... Bd7 {[%clk 0:02:44.8]} 15. Rac1 {[%clk 0:02:33.2]}
15... Bxh2+ {[%clk 0:02:39.4]} 16. Kxh2 {[%clk 0:02:00.8]} 16... Ng4+ {[%clk
0:02:39.2]} 17. Kg3 {[%clk 0:02:01.5]} 17... g5 {[%clk 0:02:39]} 18. Rh1 {[%clk
0:01:50.8]} 18... gxh4+ {[%clk 0:02:31.1]} 19. Rxh4 {[%clk 0:01:51.7]} 19... Qg5
{[%clk 0:02:30.8]} 20. Nf3 {[%clk 0:01:51.6]} 20... Qg7 {[%clk 0:02:30]} 21. Qb1
{[%clk 0:01:36.6]} 21... Nxe3+ {[%clk 0:02:26.9]} 22. Kh2 {[%clk 0:01:36.9]}
22... Qxg2# {[%clk 0:02:26.8]} 0-1

[Event "Early-Titled-Tuesday-Blitz-January-30-2024"]
[Site "Chess.com"]
[Date "2024.01.30"]
[Round "2"]
[White "vishwa_vijeta"]
[Black "cycygogne"]
[Result "1-0"]
[WhiteElo "2537"]
[BlackElo "2286"]
[TimeControl "180+1"]
[EndTime "8:14:45 PST"]
[Termination "vishwa_vijeta won by resignation"]

1. e4 {[%clk 0:03:00.9]} 1... d5 {[%clk 0:03:00.1]} 2. exd5 {[%clk 0:02:58.8]}
2... Qxd5 {[%clk 0:03:01]} 3. Nc3 {[%clk 0:02:56]} 3... Qd6 {[%clk 0:03:00.9]}
4. Nf3 {[%clk 0:02:46.9]} 4... Bg4 {[%clk 0:02:58.8]} 5. d4 {[%clk 0:02:45.7]}
5... Nf6 {[%clk 0:02:58.7]} 6. Bc4 {[%clk 0:02:40.8]} 6... Nc6 {[%clk
0:02:57.7]} 7. Be3 {[%clk 0:02:26.3]} 7... O-O-O {[%clk 0:02:52.3]} 8. O-O
{[%clk 0:02:17.6]} 8... Bxf3 {[%clk 0:02:47.5]} 9. Qxf3 {[%clk 0:02:16.8]} 9...
Nxd4 {[%clk 0:02:46.8]} 10. Bxd4 {[%clk 0:02:16.4]} 10... Qxd4 {[%clk
0:02:47.7]} 11. Bxf7 {[%clk 0:02:15.1]} 11... c6 {[%clk 0:02:24.3]} 12. Rad1
{[%clk 0:02:04]} 12... Qb6 {[%clk 0:02:23.7]} 13. Be6+ {[%clk 0:01:53.3]} 13...
Kb8 {[%clk 0:02:23.2]} 14. Qg3+ {[%clk 0:01:46.2]} 14... Ka8 {[%clk 0:02:21.7]}
15. Na4 {[%clk 0:01:45.8]} 15... Qa5 {[%clk 0:02:17.8]} 16. b4 {[%clk
0:01:43.2]} 16... Ne4 {[%clk 0:02:12.7]} 17. bxa5 {[%clk 0:01:41.4]} 1-0

[Event "Early-Titled-Tuesday-Blitz-January-30-2024"]
[Site "Chess.com"]
[Date "2024.01.30"]
[Round "2"]
[White "Susal_De_Silva"]
[Black "esrosenberg"]
[Result "1-0"]
[WhiteElo "2757"]
[BlackElo "2402"]
[TimeControl "180+1"]
[EndTime "8:15:00 PST"]
[Termination "Susal_De_Silva won by resignation"]

1. Nf3 {[%clk 0:02:58]} 1... d5 {[%clk 0:02:58.6]} 2. e3 {[%clk 0:02:57.6]} 2...
c5 {[%clk 0:02:54.7]} 3. c4 {[%clk 0:02:53.8]} 3... d4 {[%clk 0:02:54]} 4. exd4
{[%clk 0:02:54.4]} 4... cxd4 {[%clk 0:02:53.9]} 5. g3 {[%clk 0:02:55.1]} 5...
Nc6 {[%clk 0:02:53.1]} 6. Bg2 {[%clk 0:02:55.6]} 6... e5 {[%clk 0:02:53.6]} 7.
d3 {[%clk 0:02:56]} 7... Bb4+ {[%clk 0:02:52.3]} 8. Bd2 {[%clk 0:02:55.5]} 8...
a5 {[%clk 0:02:52.7]} 9. O-O {[%clk 0:02:55.1]} 9... Be7 {[%clk 0:02:49.9]} 10.
Re1 {[%clk 0:02:46.6]} 10... f6 {[%clk 0:02:47.8]} 11. Nh4 {[%clk 0:02:39.4]}
11... g6 {[%clk 0:02:42.3]} 12. f4 {[%clk 0:02:38]} 12... Qc7 {[%clk 0:02:13.7]}
13. f5 {[%clk 0:02:34.1]} 13... g5 {[%clk 0:01:59.3]} 14. Qh5+ {[%clk 0:02:32]}
14... Kf8 {[%clk 0:01:43.2]} 15. Ng6+ {[%clk 0:02:29.1]} 15... hxg6 {[%clk
0:01:43.3]} 16. Qxh8 {[%clk 0:02:29.9]} 16... Bxf5 {[%clk 0:01:39.1]} 17. Bd5
{[%clk 0:02:28.9]} 1-0

[Event "Early-Titled-Tuesday-Blitz-January-30-2024"]
[Site "Chess.com"]
[Date "2024.01.30"]
[Round "2"]
[White "Nouali_Mohamed"]
[Black "Karina_Ivanova"]
[Result "1-0"]
[WhiteElo "2534"]
[BlackElo "2279"]
[TimeControl "180+1"]
[EndTime "8:15:04 PST"]
[Termination "Nouali_Mohamed won by checkmate"]

1. e4 {[%clk 0:02:56.7]} 1... c6 {[%clk 0:02:58.7]} 2. d4 {[%clk 0:02:56.6]}
2... d5 {[%clk 0:02:58.4]} 3. e5 {[%clk 0:02:57.1]} 3... Bf5 {[%clk 0:02:56.1]}
4. Nc3 {[%clk 0:02:57.1]} 4... e6 {[%clk 0:02:54.7]} 5. g4 {[%clk 0:02:55]} 5...
Bg6 {[%clk 0:02:54.1]} 6. Nge2 {[%clk 0:02:53.2]} 6... Bb4 {[%clk 0:02:48.9]} 7.
Be3 {[%clk 0:02:45.3]} 7... c5 {[%clk 0:02:34.2]} 8. dxc5 {[%clk 0:02:14.4]}
8... Nd7 {[%clk 0:02:22.9]} 9. Nd4 {[%clk 0:01:58.1]} 9... Nxc5 {[%clk
0:02:04.6]} 10. Bb5+ {[%clk 0:01:53.8]} 10... Nd7 {[%clk 0:02:04.4]} 11. f4
{[%clk 0:01:45.6]} 11... Be4 {[%clk 0:02:01.3]} 12. O-O {[%clk 0:01:45.2]} 12...
Bxc3 {[%clk 0:01:59.8]} 13. bxc3 {[%clk 0:01:46.1]} 13... Ne7 {[%clk 0:01:54.6]}
14. f5 {[%clk 0:01:44.3]} 14... a6 {[%clk 0:01:53.3]} 15. fxe6 {[%clk
0:01:43.5]} 15... axb5 {[%clk 0:01:50]} 16. exf7+ {[%clk 0:01:43.3]} 16... Kf8
{[%clk 0:01:49.7]} 17. Ne6# {[%clk 0:01:44.2]} 1-0

[Event "Early-Titled-Tuesday-Blitz-January-30-2024"]
[Site "Chess.com"]
[Date "2024.01.30"]
[Round "2"]
[White "Actuary44"]
[Black "PawnEatingZombie"]
[Result "1-0"]
[WhiteElo "2486"]
[BlackElo "2146"]
[TimeControl "180+1"]
[EndTime "8:15:10 PST"]
[Termination "Actuary44 won by resignation"]

1. e4 {[%clk 0:03:00.9]} 1... e6 {[%clk 0:02:57.6]} 2. d4 {[%clk 0:03:01.1]}
2... d5 {[%clk 0:02:56.6]} 3. Nc3 {[%clk 0:03:02]} 3... Nf6 {[%clk 0:02:56.1]}
4. e5 {[%clk 0:03:02.4]} 4... Nfd7 {[%clk 0:02:56.3]} 5. f4 {[%clk 0:03:03.3]}
5... c5 {[%clk 0:02:56.5]} 6. dxc5 {[%clk 0:03:04.2]} 6... Nc6 {[%clk
0:02:52.5]} 7. Nf3 {[%clk 0:03:05.1]} 7... Bxc5 {[%clk 0:02:51.7]} 8. Bd3 {[%clk
0:03:05.7]} 8... Be7 {[%clk 0:02:40.6]} 9. Qe2 {[%clk 0:03:05.2]} 9... O-O
{[%clk 0:02:39.7]} 10. Bd2 {[%clk 0:03:05]} 10... f6 {[%clk 0:02:33.8]} 11.
O-O-O {[%clk 0:03:03.8]} 11... fxe5 {[%clk 0:02:31.4]} 12. fxe5 {[%clk
0:03:04.4]} 12... a6 {[%clk 0:02:30.1]} 13. h4 {[%clk 0:03:04.5]} 13... Qc7
{[%clk 0:02:27.5]} 14. Bxh7+ {[%clk 0:02:59.7]} 14... Kxh7 {[%clk 0:02:25.2]}
15. Ng5+ {[%clk 0:02:59.8]} 15... Bxg5 {[%clk 0:02:23.5]} 16. hxg5+ {[%clk
0:03:00.7]} 16... Kg8 {[%clk 0:02:23.6]} 17. Qh5 {[%clk 0:02:23.6]} 17... Rf5
{[%clk 0:02:04.4]} 18. g4 {[%clk 0:02:11.8]} 18... Rxe5 {[%clk 0:01:57.6]} 19.
Rdf1 {[%clk 0:02:01.6]} 19... Nf6 {[%clk 0:01:33.1]} 20. Qh8+ {[%clk 0:01:58.6]}
20... Kf7 {[%clk 0:01:33.7]} 21. gxf6 {[%clk 0:01:58.4]} 1-0